Cogmind - Beta 13 @@@ ROGUE MODE // 2024.05.07 @ 12:07:03 Player: JP Result: Self-destructed Performance ------------- Evolutions (1) 500 Regions Visited (4) 800 Robots Destroyed (42) 210 Value Destroyed (964) 964 Prototype IDs (3) 60 Alien Tech Used (0) 0 Bonus (-40) -40 TOTAL SCORE: 2494 Bonus ------- Friendly Fire -40 Cogmind --------- Core Integrity 102/400 Matter 300/300 Energy 13/100 System Corruption 0% Temperature Warm (164) Movement Core (200) Ox3 Location -9/Storage Parts ------- > --- POWER (1) -------- (None) > --- PROPULSION (3) --- (None) > --- UTILITY (3) ------ Small Storage Unit > --- WEAPON (2) ------- Ion Cannon > --- INVENTORY (8) ---- Ion Engine Improved Ion Engine Cooling System Signal Interpreter Reactive Plating Beam Rifle Heavy Particle Cannon Peak State ------------ > --- POWER ------------ Improved Ion Engine > --- PROPULSION ------- Carbon-fiber Leg Titanium Leg > --- UTILITY ---------- Improved Heat Sink Cooling System Small Storage Unit > --- WEAPON ----------- Improved EM Shotgun Beamcaster > --- INVENTORY -------- Ion Engine Cooling System Signal Interpreter Reactive Plating Beam Rifle Heavy Particle Cannon Ion Cannon Missile Launcher [Rating: 23] Favorites ----------- Power Light Ion Engine Engine Light Ion Engine Propulsion Aluminum Leg Treads Light Treads Leg Aluminum Leg Utility Small Storage Unit Device Improved Heat Sink Storage Small Storage Unit Protection Light Armor Plating Weapon Medium Laser Energy Gun Medium Laser Energy Cannon Heavy Particle Cannon Ballistic Gun Assault Rifle Launcher Missile Launcher Build | -11 -10 -10 -9 -9 ------- Run | Yrd Mat Min Mat Sto Slots Evolved 2 | . . . 2 . Power . | . . . . . Propulsion 1 | . . . 1 . Utility 1 | . . . 1 . Weapon . | . . . . . Parts Attached 34 | 6 5 7 10 6 Power 5 | 1 1 . 2 1 Engine 5 | 1 1 . 2 1 Core . | . . . . . Reactor . | . . . . . Propulsion 7 | 2 . 2 1 2 Treads 1 | . . . . 1 Leg 6 | 2 . 2 1 1 Wheel . | . . . . . Hover . | . . . . . Flight . | . . . . . Utility 6 | 1 2 2 1 . Device 4 | . 1 2 1 . Storage 1 | 1 . . . . Processor . | . . . . . Hackware . | . . . . . Protection 1 | . 1 . . . Artifact . | . . . . . Weapon 16 | 2 2 3 6 3 Energy Gun 9 | . 1 2 4 2 Energy Cannon 2 | . . 1 . 1 Ballistic Gun 3 | 2 1 . . . Ballistic Cannon . | . . . . . Launcher 2 | . . . 2 . Special Weapon . | . . . . . Impact Weapon . | . . . . . Slashing Weapon . | . . . . . Piercing Weapon . | . . . . . Special Melee Weapon . | . . . . . Unidentified Prototypes 1 | . . . 1 . Corrupted Parts 2 | . . 2 . . System Corruption 7 | . . 7 . . Parts Lost 12 | . 1 1 1 9 Power 2 | . 1 . . 1 Propulsion 4 | . . . 1 3 Utility 3 | . . 1 . 2 Weapon 3 | . . . . 3 Highest Loss Streak 5 | . 1 1 1 5 To Critical Strikes . | . . . . . Average Slot Usage (%) 87 | . 92 99 87 62 Engine 11 | . 8 14 11 10 Treads 1 | . . . . 5 Leg 23 | . 28 28 21 12 Device 10 | . 5 10 22 2 Storage 12 | . 14 14 11 11 Protection 2 | . 7 2 . . Energy Gun 13 | . 6 18 16 10 Energy Cannon 5 | . . 6 4 9 Ballistic Gun 6 | . 21 2 . . Naked Turns . | . . . . . Heaviest Build 26 | 11 15 20 26 26 Greatest Support 32 | 20 20 32 32 27 Greatest Overweight (x) 1 | . . . 1 1 Average Overweight (x) . | . . . . . Largest Inventory Capacity 8 | 8 8 8 8 8 Average Capacity 7 | 7 8 8 8 8 Most Carried 8 | 5 8 8 8 8 Average Carried 7 | 3 7 7 7 6 Final Capacity 8 | 8 8 8 8 8 Final Carried 8 | 4 8 8 8 7 Class Distribution -------------------- 82% | Mutant 17% | Scavenger-Mutant Dominant Class ---------------- Mutant | -10/Materials Mutant | -10/Mines Scavenger-Mutant | -9/Materials Mutant | -9/Storage Resources | -11 -10 -10 -9 -9 ----------- Run | Yrd Mat Min Mat Sto Matter Collected 680 | 117 72 286 167 38 Remotely . | . . . . . Salvage Created 1368 | . 72 176 592 528 Parts 81 | . 10 11 28 32 Haulers Intercepted 3 | . . . 3 . Recyclers Shooed . | . . . . . Parts Field Recycled . | . . . . . Retrieved Matter . | . . . . . Parts Self-Destructed . | . . . . . Prevented . | . . . . . Kills | -11 -10 -10 -9 -9 ------- Run | Yrd Mat Min Mat Sto Combat Hostiles Destroyed 31 | . 3 8 9 11 Guns 21 | . 3 7 3 8 Cannons 1 | . . . . 1 AOE 8 | . . . 6 2 Classes Destroyed 8 | . 3 1 3 1 Worker 1 | . . . 1 . Builder 3 | . 1 . 1 1 Hauler 3 | . . . 3 . Recycler 2 | . . . 1 1 Watcher 2 | . 1 . . 1 Swarmer 12 | . 3 6 . 3 Grunt 16 | . . 2 9 5 Sentry 3 | . . . . 3 Best Kill Streak 9 | . 3 2 9 4 Combat Bots Only 4 | . 3 2 3 4 Max Kills in Single Turn 4 | . 1 1 4 2 Gunslinging . | . . . . . Exploded 3 | . . . 3 2 Melee . | . . . . . Uniques/NPCs Destroyed . | . . . . . Combat | -11 -10 -10 -9 -9 -------- Run | Yrd Mat Min Mat Sto Hostile Shots Fired 206 | . 47 38 43 78 Missed 50 | . 14 6 8 22 Damage Taken 1824 | . 318 281 533 692 Core 442 | . 118 26 133 165 Absorbed by Shields . | . . . . . Core Remaining (%) 71 | 100 . 42 . . Volleys Fired 121 | . 30 22 32 37 Largest 2 | . 2 2 2 2 Hottest 150 | . 70 150 150 116 Shots Fired 211 | . 60 44 48 59 Gun 171 | . 60 39 43 29 Cannon 37 | . . 5 3 29 Launcher 3 | . . . 2 1 Special . | . . . . . Kinetic 58 | . 51 7 . . Thermal 136 | . 9 37 35 55 Explosive 3 | . . . 2 1 Electromagnetic 14 | . . . 11 3 Robot Hit Streak 16 | . 4 2 16 7 Robot Miss Streak 8 | . 3 8 4 2 Penetration Max . | . . . . . Secondary Targets . | . . . . . Shots Hit Robots 112 | . 28 14 34 36 Core Hits 54 | . 9 7 23 15 Critical Kills 1 | . . 1 . . Critical Parts Destroyed . | . . . . . Critical Strikes 8 | . . 2 3 3 Burn 7 | . . 1 3 3 Meltdown 1 | . . 1 . . Melee Attacks . | . . . . . Impact . | . . . . . Slashing . | . . . . . Piercing . | . . . . . Sneak Attacks . | . . . . . Combat Hostiles . | . . . . . Follow-up Attacks . | . . . . . Damage Inflicted 2605 | . 359 219 1158 869 Guns 1435 | . 287 166 642 340 Cannons 494 | . . 50 50 394 Explosions 673 | . 72 . 466 135 Melee . | . . . . . Ramming 3 | . . 3 . . Kinetic 274 | . 250 24 . . Thermal 1790 | . 109 192 651 838 Explosive 290 | . . . 290 . Electromagnetic 248 | . . . 217 31 Impact . | . . . . . Slashing . | . . . . . Piercing . | . . . . . Highest Corruption 7 | . . 7 . . Average Corruption 6 | . . 6 . . Corruption Purged . | . . . . . Corruption Blocked . | . . . . . Effects 10 | . . 10 . . Message Errors 2 | . . 2 . . Matter Fused 2 | . . 2 . . Heat Flow Errors 1 | . . 1 . . Energy Discharges 3 | . . 3 . . Data Loss (major) 1 | . . 1 . . Alerts 1 | . . 1 . . Overload Shots . | . . . . . Overflow Damage 7 | . . . . 7 Projectiles 7 | . . . . 7 Explosions . | . . . . . Melee . | . . . . . Knockbacks . | . . . . . Impact . | . . . . . Kinetic . | . . . . . Secondary . | . . . . . Self-Inflicted Damage 130 | . . . 79 51 Shots 4 | . . . 2 2 Rammed . | . . . . . Targets Rammed 3 | . . 3 . . Kicked 3 | . . 3 . . Crushed . | . . . . . Highest Temperature 251 | . 36 251 . 189 Average Temperature 66 | . 7 72 . 76 Received Heat Transfer 387 | . . 21 258 108 Siege Activations . | . . . . . Robots Corrupted . | . . . . . Combat Hostiles . | . . . . . Parts Fried 1 | . . . 1 . Impact Corruptions . | . . . . . Robots Melted 1 | . . 1 . . Combat Hostiles 1 | . . 1 . . Parts Melted 6 | . . 3 1 2 Heat Transferred 3743 | . 161 518 1236 1828 Parts Sabotaged . | . . . . . Parts Stolen . | . . . . . Parts Stripped . | . . . . . Power Chain Reactions 3 | . . . 2 1 Alert | -11 -10 -10 -9 -9 ------- Run | Yrd Mat Min Mat Sto Peak Influence 312 | . 168 174 217 312 Initial 91 | . . 19 33 91 Average 90 | . 48 73 83 186 Maximum Alert Level 1 | . . . 1 1 Low Security (%) 91 | 100 100 100 93 64 Level 1 8 | . . . 6 35 Level 2 . | . . . . . Level 3 . | . . . . . Level 4 . | . . . . . Level 5 . | . . . . . High Security . | . . . . . Max Security . | . . . . . Squads Dispatched 3 | . 1 . 2 . Investigation 1 | . . . 1 . Extermination . | . . . . . Reinforcement 2 | . 1 . 1 . Assault . | . . . . . Garrison . | . . . . . Intercept . | . . . . . Searches Triggered . | . . . . . Construction Impeded . | . . . . . Haulers Reinforced . | . . . . . Active Scanning Responses . | . . . . . Cargo Convoy Interrupts . | . . . . . Stealth | -11 -10 -10 -9 -9 --------- Run | Yrd Mat Min Mat Sto Distress Signals 4 | . 2 . 1 1 Communications Jammed . | . . . . . Distress Signals . | . . . . . Times Spotted 57 | . 13 13 17 14 Peak Tracking Total 6 | . 6 3 6 6 Tactical Retreats 4 | . 1 2 . 1 Traps | -11 -10 -10 -9 -9 ------- Run | Yrd Mat Min Mat Sto Traps Triggered 3 | . 1 1 . 1 Indirectly . | . . . . . Trap Hack Attempts . | . . . . . Triggered . | . . . . . Disarmed . | . . . . . Reprogrammed 6 | . 4 . . 2 Reused 1 | . . . . 1 Traps Extracted . | . . . . . Installed . | . . . . . Triggered 1 | . . . . 1 Machines | -11 -10 -10 -9 -9 ---------- Run | Yrd Mat Min Mat Sto Machines Disabled 6 | . 1 . 4 1 Max in Single Turn 1 | . 1 . 1 1 Machines Repaired . | . . . . . Machines Dismantled . | . . . . . Machines Sabotaged . | . . . . . Overloaded Fab Kills . | . . . . . Hacking | -11 -10 -10 -9 -9 --------- Run | Yrd Mat Min Mat Sto Machines Accessed 10 | . 3 1 4 2 Terminals 7 | . 3 . 3 1 Fabricators . | . . . . . Repair Stations 1 | . . . . 1 Recycling Units 1 | . . . 1 . Scanalyzers . | . . . . . Garrison Access . | . . . . . Total Hacks 47 | . 8 1 26 12 Successful 34 | . 5 1 22 6 Failed 13 | . 3 . 4 6 Catastrophic 2 | . 1 . . 1 Database Lockouts . | . . . . . Manual . | . . . . . Terminals 27 | . 8 . 12 7 Fabricators . | . . . . . Repair Stations 5 | . . . . 5 Recycling Units 14 | . . . 14 . Scanalyzers . | . . . . . Garrison Access . | . . . . . Terminal Hacks 19 | . 5 1 8 5 Record 4 | . . . 2 2 Robot Analysis 1 | . 1 . . . Prototype ID Bank 1 | . 1 . . . Open Door 1 | . . 1 . . Branch Access Points 1 | . . . 1 . Terminal Index 1 | . . . 1 . Alert Level 3 | . . . 2 1 Unreport Threat 1 | . . . 1 . Locate Traps 2 | . . . 1 1 Reprogram Traps 2 | . 1 . . 1 Security Status 1 | . 1 . . . Hauler Manifests 1 | . 1 . . . Fabricator Hacks . | . . . . . Repair Station Hacks 1 | . . . . 1 Scan Component 1 | . . . . 1 Recycling Unit Hacks 14 | . . . 14 . Recycle Component 9 | . . . 9 . Process 3 | . . . 3 . Report Inventory 2 | . . . 2 . Scanalyzer . | . . . . . Garrison Access Hacks . | . . . . . Unauthorized Hacks . | . . . . . Terminals . | . . . . . Fabricators . | . . . . . Repair Stations . | . . . . . Recycling Units . | . . . . . Scanalyzers . | . . . . . Garrison Access . | . . . . . Data Cores Recovered . | . . . . . Used . | . . . . . Hacking Detections 6 | . 2 . 2 2 Full Trace Events 3 | . 1 . 1 1 Feedback Events . | . . . . . Feedback Blocked . | . . . . . Robot Schematics Acquired . | . . . . . Robots Built . | . . . . . Authchips . | . . . . . Time . | . . . . . Total Robot Build Rating . | . . . . . Part Schematics Acquired . | . . . . . Parts Built . | . . . . . Authchips . | . . . . . Time . | . . . . . Total Part Build Rating . | . . . . . Parts Repaired . | . . . . . Time . | . . . . . Parts Recycled 9 | . . . 9 . Recycled Matter 389 | . . . 389 . Retrieved Matter . | . . . . . Retrieved Components . | . . . . . Parts Scanalyzed . | . . . . . Part Schematics Acquired . | . . . . . Parts Damaged . | . . . . . Bothacking | -11 -10 -10 -9 -9 ------------ Run | Yrd Mat Min Mat Sto Used RIF Installer . | . . . . . Robots Hacked . | . . . . . Non-combat . | . . . . . Combat . | . . . . . Robot Hacks Applied . | . . . . . Relay Couplers Released . | . . . . . Fabnet Peak Effective % . | . . . . . Robots Rewired . | . . . . . Allies Hacked . | . . . . . Hacks Repelled . | . . . . . Allies | -11 -10 -10 -9 -9 -------- Run | Yrd Mat Min Mat Sto Total Allies . | . . . . . Largest Group . | . . . . . Highest-Rated Group . | . . . . . Highest-Rated Ally . | . . . . . Total Orders . | . . . . . Ally Attacks . | . . . . . Total Damage . | . . . . . Kills . | . . . . . Allies Corrupted . | . . . . . Allies Melted . | . . . . . Intel | -11 -10 -10 -9 -9 ------- Run | Yrd Mat Min Mat Sto Robot Analysis Total 1 | . 1 . . . Derelict Logs Recovered 1 | . . 1 . . Drone Launches . | . . . . . Drone Recoveries . | . . . . . Exploration | -11 -10 -10 -9 -9 ------------- Run | Yrd Mat Min Mat Sto Turns Passed 2417 | 49 616 700 574 478 Spaces Moved 1445 | 34 362 503 365 181 Core 9 | 9 . . . . Treads 74 | . . . . 74 Legs 1362 | 25 362 503 365 107 Wheels . | . . . . . Hover . | . . . . . Flight . | . . . . . Fastest Speed 50 | 50 120 120 125 125 Average Speed 132 | 101 120 122 126 205 Slowest Speed 240 | 120 120 125 200 240 Overloaded Moves . | . . . . . Propulsion Burnouts . | . . . . . Robots Hopped . | . . . . . Cave-ins Triggered . | . . . . . Exploration Rate (%) 39 | 4 45 80 41 25 Regions Visited 4 Branch Regions 2 Pre-discovered Areas 1 | . . 1 . . Known Exits Taken 1 | . . . 1 . Unknown Exits Taken 3 | 1 1 1 . . Scrap Searched 1 | . . 1 . . Spaces Dug . | . . . . . Terrain Destroyed 79 | . 34 3 23 19 Melee . | . . . . . Projectile 6 | . . 3 1 2 AOE 73 | . 34 . 22 17 Terrain Rammed . | . . . . . Walls Destroyed . | . . . . . Machines Disabled . | . . . . . Actions | -11 -10 -10 -9 -9 --------- Run | Yrd Mat Min Mat Sto Total 1731 | 47 489 542 427 226 Wait 84 | . 81 1 2 . Move 1441 | 33 361 502 364 181 Hop . | . . . . . Pick Up 34 | 8 9 2 13 2 Fast Attach 8 | 2 . 2 3 1 Attach 14 | 4 4 1 2 3 Detach . | . . . . . Swap 12 | . 1 4 5 2 Drop 14 | . 3 5 6 . Fire 121 | . 30 22 32 37 Melee . | . . . . . Ram . | . . . . . Kick 3 | . . 3 . . Crush . | . . . . . Escape Stasis . | . . . . . Rewire . | . . . . . Trap . | . . . . . Miscellaneous . | . . . . . Route ------- -11/Scrapyard -10/Materials (discovered 3 exits: *Mat / *Min x2) -10/Mines -9/Materials (discovered 5 exits: [*Mat] / Min x2 / *Sto x2) -9/Storage History --------- Turn | Location | Event 6 | -11/Scrapyard | Discovered new exit (range 15) 50 | -11/Scrapyard | Entered Materials 142 | -10/Materials | Discovered new exit (range 5) 262 | -10/Materials | Discovered new exit (range 15) 307 | -10/Materials | Build established: Mutant 350 | -10/Materials | Discovered new exit (range 9) 666 | -10/Materials | Entered Mines 782 | -10/Mines | Met a Derelict bent on vengeance 793 | -10/Mines | Core integrity fell below 50% 873 | -10/Mines | Learned location of Storage (-9) 910 | -10/Mines | Discovered new exit (range 5) 1008 | -10/Mines | Met a Derelict who couldn't figure out how to use a Trap Extractor 1366 | -10/Mines | Entered Materials 1366 | -9/Materials | Evolved 2 slots: Propulsion x1, Utility x1 1566 | -9/Materials | Identified exit to Mines 1566 | -9/Materials | Identified exit to Storage 1705 | -9/Materials | Discovered new exit (range 16) 1813 | -9/Materials | Build established: Scavenger-Mutant 1940 | -9/Materials | Entered Storage 2044 | -9/Storage | Lost 5 parts (1n2u2w) 2253 | -9/Storage | Build established: Mutant 2327 | -9/Storage | Core integrity fell below 50% 2418 | -9/Storage | Self-destructed Last Messages --------------- S-10 Pest destroyed. Imp. EM Shotgun destroyed. U-05 Engineer lays Concrete. U-05 Engineer builds a Wall. Broken Titanium Leg destroyed. U-05 Engineer lays Concrete. R-06 Scavenger collects Aluminum Leg. R-06 Scavenger collects Flight Unit. U-05 Engineer lays Concrete. U-05 Engineer builds a Wall. R-06 Scavenger collects Sml. Laser. R-06 Scavenger collects Aluminum Leg. K-01 Serf collects debris. Lgt. Treads destroyed. U-05 Engineer lays Concrete. K-01 Serf collects debris. U-05 Engineer lays Concrete. R-06 Scavenger collects Flight Unit. R-06 Scavenger collects Lgt. Ion Engine. U-05 Engineer builds a Wall. Map ----- +----------------------------------------------------+ | ?????????????????????????????????????????????????? | | ?????????????????????????????????????????????????? | | ?????????????????????????????????????????????????? | | ?????????????????????????????????????????????????? | | ?????????????????????????????????????????????????? | | ?????????????????????????????????????????????????? | | ?????????????????????????????????????????????????? | | ?????????????????????????????????????????????????? | | ?????????????????????????????????????????????????? | | ?????????????????????????????????????????????????? | | ?????????????????????????????????????????????????? | | ?????????????????????????????????????????????????? | | ?????????????????????????????????????????????????? | | ?????????????????????????????????????????????????? | | ?????????????????????????????????????????????????? | | ?????????????????????????????????????????????????? | | ?????????????????????????????????????????????????? | | ?????????????????????????????????????????????????? | | ????????????????##""?????????????????????????????? | | ?????????????????T ????????????????????????????? | | ?????????????????? ######?????? ##?????????????? | | ?????????? #####/########## #?????????????? | | ????????????"" / %ruur ??????????? | | ??????????????????# sr%Y a ??????????? | | ??????????????????# #%;%k##### #?######??????? | | ???????????????????????# @#??????????# """#??????? | | ???????????????????????# #??????????#""R"#??????? | | ???????????????????????# ######????##"" "###????? | | ???????????????????????# ##"""#????# ##???? | | ???????????????????????# ##"T"###### #???? | | ???????????????????????# # ## %""" ##?### | | ???????????????????????# # ## """ #? | | ???????????????????????# # ## """ # """ | | ???????????????????????# # ## # """ | | ???????????????????????#% # !! ## "" # """ | | ???????????????????????# u# !! ## "" # """ | | ???????????????????????# # ## %""" # """ | | ???????????????????????# # ## # | | ????????????????????#### # ## # | | ???????????????? # ####+#########+######+## | | ???????????????????## | | ????????????????????# % | | ????????????????????# %%% | | ????????????????????# ####+######+##+######+## | | ????????????????????#######? ?## [ # | | ??????????????????????????" """"" # ] # | | ????????????????????????#"Y """"" ## #! | | ????????????????????????#"" """"" ## # | | ????????????????????????### ## ] # | | ??????????????????????????# """"" ## # ! | +----------------------------------------------------+ Best States ------------- Heat Dissipation 64 Energy Generation 12 Energy Capacity 265 Matter Stores 300 Matter Capacity 300 Sight Range 16 Terrain Scan Range 14 Terrain Scan Density 10 Armor Coverage 150 Evasion (%) 55 Recoil Reduction 1 Item Schematics ----------------- None Robot Schematics ------------------ None Fabricated ------------ Nothing Alien Tech Used ----------------- None Achievements -------------- Everything Is Under Control Challenges ------------ None Game ------ Seed SurveybotPrecisionLink Manual? 0 Play Time 00:30:02 Cumulative 4.7 hours Start 2024.05.07 @ 11:38:24 End 2024.05.07 @ 12:07:03 Sessions 1 Manual Loads 0 Difficulty Rogue Special Mode None Game No. 6 Rogue 6 Adventurer 0 Explorer 0 Win Type - Total 0 Types 0/0/0/0/0/0/0/0/0 Lore% 5 Gallery% 12 Achievement% 12 Wizard Run 0 Options --------- Layout 1 ASCII 0 Keyboard 0 Movement Mouse Keybinds 0 Fullscreen 2 Font 24/Smallcaps Map View 50x35 Zoom Use 23% Tactical HUD 0 Map Filters NONE Filters NONE Steam 1 RUN: cf3a6be9-e387-4787-bc60-21edc06fab60